Workbook

Sheet Collision risk
A1: COLLISION RISK MODEL | C1: Required input data is in | E1: orange | F1: boxes
C2: Calculated output is in | E2: blue | F2: boxes
E3: green | F3: boxes are for information only, to show variables used at each stage
C5: Value | D5: Units | I5: Value | J5: Units | O5: Value | P5: Units
A6: Bird data | F6: Windfarm data | M6: Turbine data
A7: Species name | C7: Hen harrier | G7: Site name | I7: North Sea | M7: Model | O7: 3.2MW tupe
A8: Bird length | B8: L | C8: 0.48 | D8: m | G8: Latitude | I8: 56.5 | J8: degrees | M8: Hub height | O8: 90 | P8: m
A9: Wingspan | B9: W | C9: 1.1 | D9: m | G9: No of turbines | H9: T | I9: 46 | M9: Rotor radius | N9: R | O9: 57 | P9: m
A10: Bird flight speed | B10: v | C10: 8 | D10: m s-1 | G10: Width of windfarm | H10: w | I10: 3 | J10: km | M10: No of blades | N10: b | O10: 3
A11: Flight type, flapping or gliding | C11: flapping | M11: Rotation speed | N11: Ω | O11: 9.87 | P11: rpm
A12: % of flights upwind/downwind | C12: 0.5 | D12: =1-C12 -> 0.5 | M12: Max blade width | N12: C | O12: 4.2 | P12: m
A13: Nocturnal activity ranking 1-5 | C13: 1 | M13: Blade pitch | N13: λ | O13: 15 | P13: degrees
A14: Nocturnal activity factor | B14: fnight | C14: =(C13-1)*0.25 -> 0 | M14: Risk height range | O14: =CONCATENATE(TEXT(O8-O9,"###"),"-",TEXT(O8+O9,"###")) -> 33-147 | P14: m
A16: normal approach | C16: Set to 'normal approach' to use survey data on bird density
C17: Set to 'birds on migration' to use 'Migrant collision risk' sheet in place of Stage A
A18: Stage A | F18: Jan | G18: Feb | H18: Mar | I18: Apr | J18: May | K18: Jun | L18: Jul | M18: Aug | N18: Sep | O18: Oct | P18: Nov | Q18: Dec | S18: year avge
A19: Daytime bird density | B19: DA | D19: birds/km2 | F19: 0.0133 | G19: 0.0133 | H19: 0.033 | I19: 0.0528 | J19: 0.0528 | K19: 0.0528 | L19: 0.0528 | M19: 0.0528 | N19: 0.0528 | O19: 0.0133 | P19: 0.0133 | Q19: 0.0133 | S19: =SUM(F19:Q19)/12 -> 0.03469166667
A20: Proportion at rotor risk height | B20: Q2R | C20: 0.145
A21: =CONCATENATE("At latitude ",TEXT(I8,"##.#")) -> At latitude 56.5 | C21: Daylight hours per month | F21: ='Daylight and night hours'!F10 -> 234.6865622 | G21: ='Daylight and night hours'!G10 -> 265.4835125 | H21: ='Daylight and night hours'!H10 -> 365.3936622 | I21: ='Daylight and night hours'!I10 -> 425.7659566 | J21: ='Daylight and night hours'!J10 -> 507.5322217 | K21: ='Daylight and night hours'!K10 -> 528.7763311 | L21: ='Daylight and night hours'!L10 -> 529.6549487 | M21: ='Daylight and night hours'!M10 -> 470.0639887 | N21: ='Daylight and night hours'!N10 -> 385.1671891 | O21: ='Daylight and night hours'!O10 -> 324.1573058 | P21: ='Daylight and night hours'!P10 -> 247.5643505 | Q21: ='Daylight and night hours'!Q10 -> 215.9773852 | S21: =SUM(F21:Q21) -> 4500.223414
C22: Nighttime hours per month | F22: ='Daylight and night hours'!F14 -> 509.3134378 | G22: ='Daylight and night hours'!G14 -> 406.5164875 | H22: ='Daylight and night hours'!H14 -> 378.6063378 | I22: ='Daylight and night hours'!I14 -> 294.2340434 | J22: ='Daylight and night hours'!J14 -> 236.4677783 | K22: ='Daylight and night hours'!K14 -> 191.2236689 | L22: ='Daylight and night hours'!L14 -> 214.3450513 | M22: ='Daylight and night hours'!M14 -> 273.9360113 | N22: ='Daylight and night hours'!N14 -> 334.8328109 | O22: ='Daylight and night hours'!O14 -> 419.8426942 | P22: ='Daylight and night hours'!P14 -> 472.4356495 | Q22: ='Daylight and night hours'!Q14 -> 528.0226148 | S22: =SUM(F22:Q22) -> 4259.776586
A23: Stage B
A24: No of turbines | B24: T | C24: =I9 -> 46
A25: Rotor radius | B25: R | C25: =O9 -> 57 | D25: m
C26: Total rotor frontal area m2 | E26: =C24*PI()*C25*C25 -> 469523.5884
A27: Nocturnal activity factor | B27: fnight | C27: =C14 -> 0
A28: Bird flight speed | B28: v | C28: =C10 -> 8 | D28: m s-1 | F28: Jan | G28: Feb | H28: Mar | I28: Apr | J28: May | K28: Jun | L28: Jul | M28: Aug | N28: Sep | O28: Oct | P28: Nov | Q28: Dec | S28: year total
C29: Projected number of rotor transits | F29: =IF($A16="birds on migration",'Migrant collision risk'!F14,($C28*F19/(2*$C25))*$E26*(F21+$C27*F22)*$C20*3600/1000000) -> 53.68499521 | G29: =IF($A16="birds on migration",'Migrant collision risk'!G14,($C28*G19/(2*$C25))*$E26*(G21+$C27*G22)*$C20*3600/1000000) -> 60.72985586 | H29: =IF($A16="birds on migration",'Migrant collision risk'!H14,($C28*H19/(2*$C25))*$E26*(H21+$C27*H22)*$C20*3600/1000000) -> 207.3900921 | I29: =IF($A16="birds on migration",'Migrant collision risk'!I14,($C28*I19/(2*$C25))*$E26*(I21+$C27*I22)*$C20*3600/1000000) -> 386.649907 | J29: =IF($A16="birds on migration",'Migrant collision risk'!J14,($C28*J19/(2*$C25))*$E26*(J21+$C27*J22)*$C20*3600/1000000) -> 460.9041266 | K29: =IF($A16="birds on migration",'Migrant collision risk'!K14,($C28*K19/(2*$C25))*$E26*(K21+$C27*K22)*$C20*3600/1000000) -> 480.1964931 | L29: =IF($A16="birds on migration",'Migrant collision risk'!L14,($C28*L19/(2*$C25))*$E26*(L21+$C27*L22)*$C20*3600/1000000) -> 480.9943902 | M29: =IF($A16="birds on migration",'Migrant collision risk'!M14,($C28*M19/(2*$C25))*$E26*(M21+$C27*M22)*$C20*3600/1000000) -> 426.8781821 | N29: =IF($A16="birds on migration",'Migrant collision risk'!N14,($C28*N19/(2*$C25))*$E26*(N21+$C27*N22)*$C20*3600/1000000) -> 349.7810371 | O29: =IF($A16="birds on migration",'Migrant collision risk'!O14,($C28*O19/(2*$C25))*$E26*(O21+$C27*O22)*$C20*3600/1000000) -> 74.15159709 | P29: =IF($A16="birds on migration",'Migrant collision risk'!P14,($C28*P19/(2*$C25))*$E26*(P21+$C27*P22)*$C20*3600/1000000) -> 56.63081363 | Q29: =IF($A16="birds on migration",'Migrant collision risk'!Q14,($C28*Q19/(2*$C25))*$E26*(Q21+$C27*Q22)*$C20*3600/1000000) -> 49.40523555 | S29: =SUM(F29:Q29) -> 3087.396725
A30: Stage C
A31: No of blades | B31: b | C31: =O10 -> 3 | G31: Bird length | H31: l | I31: =C8 -> 0.48 | J31: m
A32: Rotation speed | B32: Ω | C32: =O11 -> 9.87 | D32: rpm | G32: Wingspan | H32: w | I32: =C9 -> 1.1 | J32: m
A33: Rotor radius | B33: R | C33: =O9 -> 57 | D33: m | G33: Bird flight speed | H33: =B28 -> v | I33: =C10 -> 8 | J33: m s-1
A34: Max blade width | B34: C | C34: =O12 -> 4.2 | D34: m | G34: Flight type | I34: =C11 -> flapping
A35: Pitch | B35: λ | C35: =O13 -> 15 | D35: degrees | G35: % of flights upwind/downwind | I35: =C12 -> 0.5 | J35: =D12 -> 0.5
A36: Blade profile | D36: see Blade profile sheet
C37: Single transit risk | E37: upwind | F37: =pcoll_av("up") -> 0.1119333878
E38: downwind | F38: =pcoll_av("down") -> 0.05125817284
E39: weighted mean | F39: =I35*F37+J35*F38 -> 0.08159578033
A40: Stage D | F40: Jan | G40: Feb | H40: Mar | I40: Apr | J40: May | K40: Jun | L40: Jul | M40: Aug | N40: Sep | O40: Oct | P40: Nov | Q40: Dec | S40: year avge
A41: Proportion of time operational | B41: Qop | F41: 0.874 | G41: 0.893 | H41: 0.874 | I41: 0.846 | J41: 0.68 | K41: 0.689 | L41: 0.689 | M41: 0.773 | N41: 0.856 | O41: 0.912 | P41: 0.874 | Q41: 0.865 | S41: =SUM(F41:Q41)/12 -> 0.81875
F43: Collision rates before avoidance | S43: year total
F44: =F29*F41*$F39 -> 3.828529972 | G44: 4.42508288 | H44: 14.78996469 | I44: 26.69045474 | J44: 25.57332567 | K44: 26.99640321 | L44: 27.04126058 | M44: 26.92471732 | N44: 24.43080211 | O44: 5.518017174 | P44: 4.038610165 | Q44: 3.487038816 | S44: =SUM(F44:Q44) -> 193.7442073
A45: Stage E
A46: Allow for large array correction? | C46: No
A47: Width of windfarm | B47: w | C47: =I10 -> 3 | D47: km
D48: large array | F48: Jan | G48: Feb | H48: Mar | I48: Apr | J48: May | K48: Jun | L48: Jul | M48: Aug | N48: Sep | O48: Oct | P48: Nov | Q48: Dec | S48: per year
D49: correction | F49: Collision rates allowing for avoidance
A50: Avoidance rates modelled | C50: 0.95 | D50: =IF(C$46="yes",'Large array correction'!B18,1) -> 1 | F50: =$D50*F$44*(1-$C50) -> 0.1914264986 | G50: =$D50*G$44*(1-$C50) -> 0.221254144 | H50: 0.7394982345 | I50: 1.334522737 | J50: 1.278666283 | K50: 1.349820161 | L50: 1.352063029 | M50: 1.346235866 | N50: 1.221540105 | O50: 0.2759008587 | P50: 0.2019305082 | Q50: 0.1743519408 | S50: =SUM(F50:Q50) -> 9.687210366
C51: 0.98 | D51: =IF(C$46="yes",'Large array correction'!C18,1) -> 1 | F51: =$D51*F$44*(1-$C51) -> 0.07657059945 | G51: 0.08850165761 | H51: 0.2957992938 | I51: 0.5338090948 | J51: 0.5114665133 | K51: 0.5399280643 | L51: 0.5408252116 | M51: 0.5384943464 | N51: 0.4886160421 | O51: 0.1103603435 | P51: 0.0807722033 | Q51: 0.06974077633 | S51: 3.874884147
C52: 0.99 | D52: =IF(C$46="yes",'Large array correction'!D18,1) -> 1 | F52: 0.03828529972 | G52: 0.0442508288 | H52: 0.1478996469 | I52: 0.2669045474 | J52: 0.2557332567 | K52: 0.2699640321 | L52: 0.2704126058 | M52: 0.2692471732 | N52: 0.2443080211 | O52: 0.05518017174 | P52: 0.04038610165 | Q52: 0.03487038816 | S52: 1.937442073
C53: 0.995 | D53: =IF(C$46="yes",'Large array correction'!E18,1) -> 1 | F53: 0.01914264986 | G53: 0.0221254144 | H53: 0.07394982345 | I53: 0.1334522737 | J53: 0.1278666283 | K53: 0.1349820161 | L53: 0.1352063029 | M53: 0.1346235866 | N53: 0.1221540105 | O53: 0.02759008587 | P53: 0.02019305082 | Q53: 0.01743519408 | S53: 0.9687210366

Sheet Blade profile
A1: BLADE PROFILE
F2: SINGLE TRANSIT RISK AS A FUNCTION OF r/R
A3: This table lists the chord widths | C3: r/R | D3: c/C | F3: p(r) up | G3: p(r) down
A4: of the blade, relative to the maximum | C4: 0 | D4: 0.69
A5: chord width, at intervals of 1/20 of its length. | C5: 0.05 | D5: 0.73 | F5: =pcoll_rav($C5,"up") -> 0.7293854356 | G5: =pcoll_rav($C5,"down") -> 0.6314824224
C6: =C5+0.05 -> 0.1 | D6: 0.79 | F6: =pcoll_rav($C6,"up") -> 0.4135814905 | G6: 0.3076319098
A7: The table accompanying the guidance | C7: =C6+0.05 -> 0.15 | D7: 0.88 | F7: =pcoll_rav($C7,"up") -> 0.3198041618 | G7: 0.2017841935
A8: shows the blade profile for a | C8: =C7+0.05 -> 0.2 | D8: 0.96 | F8: 0.2735633254 | G8: 0.144814238
A9: large modern turbine ~ 3MW | C9: 0.25 | D9: 1 | F9: 0.2398450077 | G9: 0.1057314798
C10: 0.3 | D10: 0.98 | F10: 0.2074403614 | G10: 0.07600905001
A11: The figures in the c/C column | C11: 0.35 | D11: 0.92 | F11: 0.180628553 | G11: 0.05724406987
A12: may be revised to reflect the | C12: 0.4 | D12: 0.85 | F12: 0.1588217914 | G12: 0.04482525215
A13: blade shape of the turbine used | C13: 0.45 | D13: 0.8 | F13: 0.1436693519 | G13: 0.03637850285
C14: 0.5 | D14: 0.75 | F14: 0.1308768094 | G14: 0.03029166907
A15: The data must occupy cells d4:d24 | C15: 0.55 | D15: 0.7 | F15: 0.1198005974 | G15: 0.03329885751
C16: 0.6 | D16: 0.64 | F16: 0.1087746695 | G16: 0.03627799079
C17: 0.65 | D17: 0.58 | F17: 0.09882605821 | G17: 0.03817978129
C18: 0.7 | D18: 0.52 | F18: 0.08972393721 | G18: 0.03923512995
C19: 0.75 | D19: 0.47 | F19: 0.0824225992 | G19: 0.03983078524
C20: 0.8 | D20: 0.41 | F20: 0.07451948524 | G20: 0.03968708217
C21: 0.85 | D21: 0.37 | F21: 0.06921352446 | G21: 0.03962848708
C22: 0.9 | D22: 0.3 | F22: 0.06105463952 | G22: 0.03839941695
C23: 0.95 | D23: 0.24 | F23: 0.05428875983 | G23: 0.03711849079
C24: 1 | D24: 0 | F24: 0.02961000055 | G24: 0.02961000055
F26: =2*(SUMPRODUCT($C5:$C23,F5:F23)+F24/2)*0.05 -> 0.1119333749 | G26: =2*(SUMPRODUCT($C5:$C23,G5:G23)+G24/2)*0.05 -> 0.05125816852 | H26: Average collision risks for flight through disk
F27: ='Collision risk'!C12 -> 0.5 | G27: =1-F27 -> 0.5 | H27: Proportions upwind/downwind flight
G29: Average | H29: =F26*F27+G26*G27 -> 0.0815957717
F34: =pcoll_av("up") -> 0.1119333878 | G34: =pcoll_av("down") -> 0.05125817284

Sheet Daylight and night hours
A1: COLLISION RISK ASSESSMENT
A2: Daylight and night hours
A4: Latitude = | B4: ='Collision risk'!I8 -> 56.5 | C4: central latitude of the proposal, copied from the input data shoet: do not enter here
A6: Taken from Forsythe et al.(1995) A model comparison for daylength as a function of latitude and day of year. Ecological Modelling. 80: 87 - 95
B8: P | C8: Daylength | F8: Monthly available daylight hours
A9: 1 | B9: =ASIN(0.39795*COS(0.2163108+2*ATAN(0.9671396*TAN(0.0086*(A9-186))))) -> -0.4027006507 | C9: =24-(24/PI())*ACOS((SIN(0.8333*PI()/180)+SIN($B$4*PI()/180)*SIN(B9))/(COS($B$4*PI()/180)*COS(B9))) -> 6.940273865 | D9: 2009-01-01 | F9: Jan | G9: Feb | H9: March | I9: April | J9: May | K9: June | L9: July | M9: August | N9: Sept | O9: Oct | P9: Nov | Q9: Dec
A10: =A9+1 -> 2 | B10: -0.401297999 | C10: 6.964319826 | D10: =D9+1 -> 2009-01-02 | F10: =SUM(C9:C39) -> 234.6865622 | G10: =SUM(C40:C67) -> 265.4835125 | H10: =SUM(C68:C98) -> 365.3936622 | I10: =SUM(C99:C128) -> 425.7659566 | J10: =SUM(C129:C159) -> 507.5322217 | K10: =SUM(C160:C189) -> 528.7763311 | L10: =SUM(C190:C220) -> 529.6549487 | M10: =SUM(C221:C251) -> 470.0639887 | N10: =SUM(C252:C281) -> 385.1671891 | O10: =SUM(C282:C312) -> 324.1573058 | P10: =SUM(C313:C342) -> 247.5643505 | Q10: =SUM(C343:C373) -> 215.9773852
A11: 3 | B11: -0.3997620441 | C11: 6.990551898 | D11: 2009-01-03
A12: 4 | B12: -0.3980935394 | C12: 7.018931799 | D12: 2009-01-04
A13: 5 | B13: -0.3962933046 | C13: 7.049418766 | D13: 2009-01-05 | F13: Monthly available nocturnal hours
A14: 6 | B14: -0.3943622234 | C14: 7.081969768 | D14: 2009-01-06 | F14: =F18-F10 -> 509.3134378 | G14: 406.5164875 | H14: 378.6063378 | I14: 294.2340434 | J14: 236.4677783 | K14: 191.2236689 | L14: 214.3450513 | M14: 273.9360113 | N14: 334.8328109 | O14: 419.8426942 | P14: 472.4356495 | Q14: 528.0226148
A15: 7 | B15: -0.3923012431 | C15: 7.116539726 | D15: 2009-01-07
A16: 8 | B16: -0.390111372 | C16: 7.153081737 | D16: 2009-01-08
A17: 9 | B17: -0.3877936789 | C17: 7.191547293 | D17: 2009-01-09 | F17: Monthly available total hours
A18: 10 | B18: -0.3853492906 | C18: 7.231886505 | D18: 2009-01-10 | F18: =31*24 -> 744 | G18: =28*24 -> 672 | H18: =31*24 -> 744 | I18: =30*24 -> 720 | J18: =31*24 -> 744 | K18: =30*24 -> 720 | L18: =31*24 -> 744 | M18: =31*24 -> 744 | N18: =30*24 -> 720 | O18: =31*24 -> 744 | P18: =30*24 -> 720 | Q18: =31*24 -> 744
A19: 11 | B19: -0.3827793907 | C19: 7.27404832 | D19: 2009-01-11
A20: 12 | B20: -0.3800852176 | C20: 7.317980736 | D20: 2009-01-12
A21: 13 | B21: -0.3772680626 | C21: 7.363631006 | D21: 2009-01-13 | H21: these data are copied automatically to the 'collision risk' sheet
A22: 14 | B22: -0.3743292684 | C22: 7.410945841 | D22: 2009-01-14
A23: 15 | B23: -0.3712702266 | C23: 7.459871596 | D23: 2009-01-15
A24: 16 | B24: -0.3680923764 | C24: 7.510354456 | D24: 2009-01-16
A25: 17 | B25: -0.3647972021 | C25: 7.562340607 | D25: 2009-01-17
A26: 18 | B26: -0.3613862315 | C26: 7.615776394 | D26: 2009-01-18
A27: 19 | B27: -0.3578610336 | C27: 7.670608469 | D27: 2009-01-19
A28: 20 | B28: -0.354223217 | C28: 7.726783938 | D28: 2009-01-20
A29: 21 | B29: -0.3504744273 | C29: 7.784250476 | D29: 2009-01-21
A30: 22 | B30: -0.3466163457 | C30: 7.842956452 | D30: 2009-01-22
A31: 23 | B31: -0.3426506868 | C31: 7.902851029 | D31: 2009-01-23
A32: 24 | B32: -0.3385791963 | C32: 7.963884259 | D32: 2009-01-24
A33: 25 | B33: -0.3344036496 | C33: 8.026007167 | D33: 2009-01-25
A34: 26 | B34: -0.3301258497 | C34: 8.089171819 | D34: 2009-01-26
A35: 27 | B35: -0.3257476251 | C35: 8.153331392 | D35: 2009-01-27
A36: 28 | B36: -0.321270828 | C36: 8.218440223 | D36: 2009-01-28
A37: 29 | B37: -0.3166973329 | C37: 8.284453856 | D37: 2009-01-29
A38: 30 | B38: -0.3120290342 | C38: 8.351329077 | D38: 2009-01-30
A39: 31 | B39: -0.307267845 | C39: 8.419023947 | D39: 2009-01-31
A40: 32 | B40: -0.3024156949 | C40: 8.487497818 | D40: 2009-02-01
A41: 33 | B41: -0.297474529 | C41: 8.556711353 | D41: 2009-02-02
A42: 34 | B42: -0.2924463057 | C42: 8.626626533 | D42: 2009-02-03
A43: 35 | B43: -0.2873329957 | C43: 8.69720666 | D43: 2009-02-04
A44: 36 | B44: -0.2821365801 | C44: 8.768416358 | D44: 2009-02-05
A45: 37 | B45: -0.2768590492 | C45: 8.840221563 | D45: 2009-02-06
A46: 38 | B46: -0.271502401 | C46: 8.912589517 | D46: 2009-02-07
A47: 39 | B47: -0.2660686403 | C47: 8.98548875 | D47: 2009-02-08
A48: 40 | B48: -0.2605597767 | C48: 9.058889063 | D48: 2009-02-09
A49: 41 | B49: -0.2549778243 | C49: 9.13276151 | D49: 2009-02-10
A50: 42 | B50: -0.2493247999 | C50: 9.207078374 | D50: 2009-02-11
A51: 43 | B51: -0.2436027221 | C51: 9.281813141 | D51: 2009-02-12
A52: 44 | B52: -0.2378136107 | C52: 9.356940471 | D52: 2009-02-13
A53: 45 | B53: -0.2319594849 | C53: 9.432436173 | D53: 2009-02-14
A54: 46 | B54: -0.2260423635 | C54: 9.508277175 | D54: 2009-02-15
A55: 47 | B55: -0.2200642628 | C55: 9.584441486 | D55: 2009-02-16
A56: 48 | B56: -0.2140271971 | C56: 9.660908173 | D56: 2009-02-17
A57: 49 | B57: -0.2079331769 | C57: 9.73765732 | D57: 2009-02-18
A58: 50 | B58: -0.201784209 | C58: 9.814669999 | D58: 2009-02-19
A59: 51 | B59: -0.1955822951 | C59: 9.891928235 | D59: 2009-02-20
A60: 52 | B60: -0.1893294322 | C60: 9.969414971 | D60: 2009-02-21
A61: 53 | B61: -0.1830276111 | C61: 10.04711403 | D61: 2009-02-22
A62: 54 | B62: -0.1766788165 | C62: 10.1250101 | D62: 2009-02-23
A63: 55 | B63: -0.1702850265 | C63: 10.20308865 | D63: 2009-02-24
A64: 56 | B64: -0.163848212 | C64: 10.28133598 | D64: 2009-02-25
A65: 57 | B65: -0.1573703364 | C65: 10.35973909 | D65: 2009-02-26
A66: 58 | B66: -0.1508533555 | C66: 10.43828572 | D66: 2009-02-27
A67: 59 | B67: -0.1442992171 | C67: 10.51696429 | D67: 2009-02-28
A68: 60 | B68: -0.1377098606 | C68: 10.59576384 | D68: 2009-03-01
A69: 61 | B69: -0.1310872171 | C69: 10.67467407 | D69: 2009-03-02
A70: 62 | B70: -0.124433209 | C70: 10.75368522 | D70: 2009-03-03
A71: 63 | B71: -0.11774975 | C71: 10.83278812 | D71: 2009-03-04
A72: 64 | B72: -0.1110387449 | C72: 10.91197408 | D72: 2009-03-05
A73: 65 | B73: =ASIN(0.39795*COS(0.2163108+2*ATAN(0.9671396*TAN(0.0086*(A73-186))))) -> -0.1043020897 | C73: =24-(24/PI())*ACOS((SIN(0.8333*PI()/180)+SIN($B$4*PI()/180)*SIN(B73))/(COS($B$4*PI()/180)*COS(B73))) -> 10.99123492 | D73: 2009-03-06
A74: =A73+1 -> 66 | B74: -0.0975416715 | C74: 11.07056294 | D74: =D73+1 -> 2009-03-07
A75: 67 | B75: -0.09075936821 | C75: 11.14995084 | D75: 2009-03-08
A76: 68 | B76: -0.08395704896 | C76: 11.22939173 | D76: 2009-03-09
A77: 69 | B77: -0.07713657391 | C77: 11.30887909 | D77: 2009-03-10
A78: 70 | B78: -0.07029979434 | C78: 11.38840676 | D78: 2009-03-11
A79: 71 | B79: -0.06344855272 | C79: 11.46796889 | D79: 2009-03-12
A80: 72 | B80: -0.05658468285 | C80: 11.54755991 | D80: 2009-03-13
A81: 73 | B81: -0.04971000988 | C81: 11.62717452 | D81: 2009-03-14
A82: 74 | B82: -0.0428263505 | C82: 11.70680766 | D82: 2009-03-15
A83: 75 | B83: -0.03593551306 | C83: 11.78645448 | D83: 2009-03-16
A84: 76 | B84: -0.02903929771 | C84: 11.86611032 | D84: 2009-03-17
A85: 77 | B85: -0.02213949655 | C85: 11.94577067 | D85: 2009-03-18
A86: 78 | B86: -0.01523789385 | C86: 12.02543117 | D86: 2009-03-19
A87: 79 | B87: -0.008336266168 | C87: 12.10508755 | D87: 2009-03-20
A88: 80 | B88: -0.001436382569 | C88: 12.18473565 | D88: 2009-03-21
A89: 81 | B89: 0.005459995189 | C89: 12.26437135 | D89: 2009-03-22
A90: 82 | B90: 0.01235111246 | C90: 12.3439906 | D90: 2009-03-23
A91: 83 | B91: 0.0192352215 | C91: 12.42358932 | D91: 2009-03-24
A92: 84 | B92: 0.02611058129 | C92: 12.50316345 | D92: 2009-03-25
A93: 85 | B93: 0.0329754573 | C93: 12.5827089 | D93: 2009-03-26
A94: 86 | B94: 0.03982812132 | C94: 12.66222151 | D94: 2009-03-27
A95: 87 | B95: 0.04666685123 | C95: 12.74169704 | D95: 2009-03-28
A96: 88 | B96: 0.05348993081 | C96: 12.82113115 | D96: 2009-03-29
A97: 89 | B97: 0.06029564956 | C97: 12.90051937 | D97: 2009-03-30
A98: 90 | B98: 0.06708230247 | C98: 12.97985709 | D98: 2009-03-31
A99: 91 | B99: 0.0738481899 | C99: 13.05913949 | D99: 2009-04-01
A100: 92 | B100: 0.08059161733 | C100: 13.1383616 | D100: 2009-04-02
A101: 93 | B101: 0.08731089524 | C101: 13.21751819 | D101: 2009-04-03
A102: 94 | B102: 0.09400433892 | C102: 13.29660379 | D102: 2009-04-04
A103: 95 | B103: 0.1006702684 | C103: 13.37561267 | D103: 2009-04-05
A104: 96 | B104: 0.1073070081 | C104: 13.45453878 | D104: 2009-04-06
A105: 97 | B105: 0.1139128869 | C105: 13.53337578 | D105: 2009-04-07
A106: 98 | B106: 0.1204862382 | C106: 13.61211695 | D106: 2009-04-08
A107: 99 | B107: 0.1270253993 | C107: 13.69075521 | D107: 2009-04-09
A108: 100 | B108: 0.1335287117 | C108: 13.7692831 | D108: 2009-04-10
A109: 101 | B109: 0.1399945211 | C109: 13.84769271 | D109: 2009-04-11
A110: 102 | B110: 0.1464211769 | C110: 13.92597568 | D110: 2009-04-12
A111: 103 | B111: 0.1528070328 | C111: 14.0041232 | D111: 2009-04-13
A112: 104 | B112: 0.1591504463 | C112: 14.08212592 | D112: 2009-04-14
A113: 105 | B113: 0.1654497787 | C113: 14.15997399 | D113: 2009-04-15
A114: 106 | B114: 0.1717033958 | C114: 14.23765698 | D114: 2009-04-16
A115: 107 | B115: 0.1779096669 | C115: 14.31516387 | D115: 2009-04-17
A116: 108 | B116: 0.1840669658 | C116: 14.39248305 | D116: 2009-04-18
A117: 109 | B117: 0.1901736703 | C117: 14.46960225 | D117: 2009-04-19
A118: 110 | B118: 0.1962281629 | C118: 14.54650852 | D118: 2009-04-20
A119: 111 | B119: 0.2022288302 | C119: 14.62318823 | D119: 2009-04-21
A120: 112 | B120: 0.2081740638 | C120: 14.69962699 | D120: 2009-04-22
A121: 113 | B121: 0.2140622602 | C121: 14.7758097 | D121: 2009-04-23
A122: 114 | B122: 0.2198918208 | C122: 14.85172042 | D122: 2009-04-24
A123: 115 | B123: 0.2256611527 | C123: 14.92734242 | D123: 2009-04-25
A124: 116 | B124: 0.2313686685 | C124: 15.00265814 | D124: 2009-04-26
A125: 117 | B125: 0.237012787 | C125: 15.07764911 | D125: 2009-04-27
A126: 118 | B126: 0.2425919332 | C126: 15.15229598 | D126: 2009-04-28
A127: 119 | B127: 0.248104539 | C127: 15.22657849 | D127: 2009-04-29
A128: 120 | B128: 0.2535490435 | C128: 15.30047538 | D128: 2009-04-30
A129: 121 | B129: 0.2589238934 | C129: 15.37396443 | D129: 2009-05-01
A130: 122 | B130: 0.2642275435 | C130: 15.44702243 | D130: 2009-05-02
A131: 123 | B131: 0.2694584574 | C131: 15.5196251 | D131: 2009-05-03
A132: 124 | B132: 0.2746151077 | C132: 15.59174714 | D132: 2009-05-04
A133: 125 | B133: 0.2796959769 | C133: 15.66336216 | D133: 2009-05-05
A134: 126 | B134: 0.2846995579 | C134: 15.73444266 | D134: 2009-05-06
A135: 127 | B135: 0.2896243546 | C135: 15.80496004 | D135: 2009-05-07
A136: 128 | B136: 0.2944688825 | C136: 15.87488458 | D136: 2009-05-08
A137: 129 | B137: =ASIN(0.39795*COS(0.2163108+2*ATAN(0.9671396*TAN(0.0086*(A137-186))))) -> 0.2992316698 | C137: =24-(24/PI())*ACOS((SIN(0.8333*PI()/180)+SIN($B$4*PI()/180)*SIN(B137))/(COS($B$4*PI()/180)*COS(B137))) -> 15.9441854 | D137: 2009-05-09
A138: =A137+1 -> 130 | B138: 0.3039112578 | C138: 16.01283048 | D138: =D137+1 -> 2009-05-10
A139: 131 | B139: 0.3085062014 | C139: 16.08078663 | D139: 2009-05-11
A140: 132 | B140: 0.3130150708 | C140: 16.14801952 | D140: 2009-05-12
A141: 133 | B141: 0.3174364514 | C141: 16.21449363 | D141: 2009-05-13
A142: 134 | B142: 0.3217689452 | C142: 16.28017231 | D142: 2009-05-14
A143: 135 | B143: 0.3260111713 | C143: 16.34501775 | D143: 2009-05-15
A144: 136 | B144: 0.3301617674 | C144: 16.40899104 | D144: 2009-05-16
A145: 137 | B145: 0.3342193901 | C145: 16.47205212 | D145: 2009-05-17
A146: 138 | B146: 0.3381827162 | C146: 16.5341599 | D146: 2009-05-18
A147: 139 | B147: 0.3420504436 | C147: 16.59527219 | D147: 2009-05-19
A148: 140 | B148: 0.3458212923 | C148: 16.65534585 | D148: 2009-05-20
A149: 141 | B149: 0.3494940054 | C149: 16.71433676 | D149: 2009-05-21
A150: 142 | B150: 0.3530673502 | C150: 16.77219989 | D150: 2009-05-22
A151: 143 | B151: 0.356540119 | C151: 16.82888941 | D151: 2009-05-23
A152: 144 | B152: 0.3599111306 | C152: 16.88435871 | D152: 2009-05-24
A153: 145 | B153: 0.3631792308 | C153: 16.93856052 | D153: 2009-05-25
A154: 146 | B154: 0.3663432939 | C154: 16.99144698 | D154: 2009-05-26
A155: 147 | B155: 0.3694022235 | C155: 17.04296975 | D155: 2009-05-27
A156: 148 | B156: 0.3723549539 | C156: 17.09308014 | D156: 2009-05-28
A157: 149 | B157: 0.3752004505 | C157: 17.1417292 | D157: 2009-05-29
A158: 150 | B158: 0.3779377115 | C158: 17.18886787 | D158: 2009-05-30
A159: 151 | B159: 0.3805657688 | C159: 17.23444713 | D159: 2009-05-31
A160: 152 | B160: 0.3830836888 | C160: 17.27841813 | D160: 2009-06-01
A161: 153 | B161: 0.3854905734 | C161: 17.32073238 | D161: 2009-06-02
A162: 154 | B162: 0.3877855614 | C162: 17.36134188 | D162: 2009-06-03
A163: 155 | B163: 0.3899678288 | C163: 17.40019932 | D163: 2009-06-04
A164: 156 | B164: 0.3920365906 | C164: 17.43725827 | D164: 2009-06-05
A165: 157 | B165: 0.3939911008 | C165: 17.47247334 | D165: 2009-06-06
A166: 158 | B166: 0.3958306539 | C166: 17.5058004 | D166: 2009-06-07
A167: 159 | B167: 0.3975545855 | C167: 17.53719677 | D167: 2009-06-08
A168: 160 | B168: 0.3991622732 | C168: 17.5666214 | D168: 2009-06-09
A169: 161 | B169: 0.4006531371 | C169: 17.59403507 | D169: 2009-06-10
A170: 162 | B170: 0.4020266409 | C170: 17.61940063 | D170: 2009-06-11
A171: 163 | B171: 0.4032822923 | C171: 17.64268312 | D171: 2009-06-12
A172: 164 | B172: 0.4044196437 | C172: 17.66385 | D172: 2009-06-13
A173: 165 | B173: 0.4054382928 | C173: 17.68287133 | D173: 2009-06-14
A174: 166 | B174: 0.406337883 | C174: 17.69971991 | D174: 2009-06-15
A175: 167 | B175: 0.4071181038 | C175: 17.71437144 | D175: 2009-06-16
A176: 168 | B176: 0.4077786916 | C176: 17.72680471 | D176: 2009-06-17
A177: 169 | B177: 0.4083194295 | C177: 17.73700164 | D177: 2009-06-18
A178: 170 | B178: 0.4087401478 | C178: 17.74494748 | D178: 2009-06-19
A179: 171 | B179: 0.4090407244 | C179: 17.75063082 | D179: 2009-06-20
A180: 172 | B180: 0.4092210846 | C180: 17.75404372 | D180: 2009-06-21
A181: 173 | B181: 0.4092812015 | C181: 17.75518173 | D181: 2009-06-22
A182: 174 | B182: 0.4092210957 | C182: 17.75404393 | D182: 2009-06-23
A183: 175 | B183: 0.4090408355 | C183: 17.75063292 | D183: 2009-06-24
A184: 176 | B184: 0.4087405366 | C184: 17.74495483 | D184: 2009-06-25
A185: 177 | B185: 0.4083203622 | C185: 17.73701925 | D185: 2009-06-26
A186: 178 | B186: 0.4077805226 | C186: 17.72683921 | D186: 2009-06-27
A187: 179 | B187: 0.4071212745 | C187: 17.71443106 | D187: 2009-06-28
A188: 180 | B188: 0.4063429215 | C188: 17.69981441 | D188: 2009-06-29
A189: 181 | B189: 0.4054458129 | C189: 17.68301198 | D189: 2009-06-30
A190: 182 | B190: 0.4044303436 | C190: 17.66404949 | D190: 2009-07-01
A191: 183 | B191: 0.4032969534 | C191: 17.6429555 | D191: 2009-07-02
A192: 184 | B192: 0.4020461265 | C192: 17.61976125 | D192: 2009-07-03
A193: 185 | B193: 0.4006783908 | C193: 17.5945005 | D193: 2009-07-04
A194: 186 | B194: 0.3991943173 | C194: 17.56720932 | D194: 2009-07-05
A195: 187 | B195: 0.3975945191 | C195: 17.53792595 | D195: 2009-07-06
A196: 188 | B196: 0.395879651 | C196: 17.50669054 | D196: 2009-07-07
A197: 189 | B197: 0.3940504082 | C197: 17.47354502 | D197: 2009-07-08
A198: 190 | B198: 0.3921075259 | C198: 17.43853286 | D198: 2009-07-09
A199: 191 | B199: 0.3900517779 | C199: 17.4016989 | D199: 2009-07-10
A200: 192 | B200: 0.3878839762 | C200: 17.36308912 | D200: 2009-07-11
A201: 193 | B201: =ASIN(0.39795*COS(0.2163108+2*ATAN(0.9671396*TAN(0.0086*(A201-186))))) -> 0.3856049694 | C201: =24-(24/PI())*ACOS((SIN(0.8333*PI()/180)+SIN($B$4*PI()/180)*SIN(B201))/(COS($B$4*PI()/180)*COS(B201))) -> 17.32275049 | D201: 2009-07-12
A202: =A201+1 -> 194 | B202: 0.3832156424 | C202: 17.28073074 | D202: =D201+1 -> 2009-07-13
A203: 195 | B203: 0.3807169148 | C203: 17.23707822 | D203: 2009-07-14
... 172 more rows

Sheet Large array correction
A1: COLLISION RISK ASSESSMENT
A2: Large array correction factor
A4: Do not enter data on this sheet, unless to prescribe the number of turbine rows
A5: All the data below is derived from Revised Sheet | J5: data from Sheet 1
J6: calculated fields
A7: Number of turbines | B7: ='Collision risk'!C24 -> 46 | D7: Number of rows (optional)
A8: Rotor radius | B8: ='Collision risk'!C25 -> 57 | D8: (if this is left blank, number is assumed to be sqrt(T) | J8: data to be entered here (optional)
A9: Width of windfarm | B9: ='Collision risk'!C47 -> 3 | D9: Number of turbines in each row | G9: =IF(G7="","",B7/G7) -> 
A10: Average proportion of time operational | B10: ='Collision risk'!S41 -> 0.81875
A11: Collision risk from single rotor transit | B11: ='Collision risk'!F39 -> 0.08159578033
A12: Assumed number of turbine rows | B12: =IF(G7="",B7^0.5,G7) -> 6.782329983
A14: Avoidance rate | B14: ='Collision risk'!C50 -> 0.95 | C14: ='Collision risk'!C51 -> 0.98 | D14: ='Collision risk'!C52 -> 0.99 | E14: ='Collision risk'!C53 -> 0.995
A16: Collision risk for single bird passage, before correction | B16: =$B7*(PI()*$B8*$B8)/(2*$B8*$B9*1000)*$B11*$B10*(1-B14) -> 0.004585855089 | C16: =$B7*(PI()*$B8*$B8)/(2*$B8*$B9*1000)*$B11*$B10*(1-C14) -> 0.001834342036 | D16: =$B7*(PI()*$B8*$B8)/(2*$B8*$B9*1000)*$B11*$B10*(1-D14) -> 0.0009171710178 | E16: =$B7*(PI()*$B8*$B8)/(2*$B8*$B9*1000)*$B11*$B10*(1-E14) -> 0.0004585855089
A18: Large array correction factor | B18: =1-($B12-1)/(2*$B12)*B16 + ($B12-1)*($B12-2)/(6*$B12*$B12)*(B16*B16) -> 0.9980472532 | C18: =1-($B12-1)/(2*$B12)*C16 + ($B12-1)*($B12-2)/(6*$B12*$B12)*(C16*C16) -> 0.9992183956 | D18: =1-($B12-1)/(2*$B12)*D16 + ($B12-1)*($B12-2)/(6*$B12*$B12)*(D16*D16) -> 0.9996091135 | E18: =1-($B12-1)/(2*$B12)*E16 + ($B12-1)*($B12-2)/(6*$B12*$B12)*(E16*E16) -> 0.9998045357

Sheet Migrant collision risk
A1: COLLISION RISK (BIRDS ON MIGRATION)
A2: This is an alternative to Stages A/B for use for migratory passage of birds | K2: imported from Collision Risk sheet
A3: To use, set button on Collision Risk sheet to 'Birds on migration' | K3: required supplementary data input for migratory birds
K4: calculated output data copied to Collision Risk sheet
A5: Data imported from Sheet 1:
B6: Species | D6: ='Collision risk'!C7 -> Hen harrier
B7: Rotor radius | D7: ='Collision risk'!O9 -> 57 | E7: m
B8: Total rotor frontal area | D8: ='Collision risk'!E26 -> 469523.5884 | E8: sq m
A10: Migratory flight activity data: | F10: Jan | G10: Feb | H10: Mar | I10: Apr | J10: May | K10: Jun | L10: Jul | M10: Aug | N10: Sep | O10: Oct | P10: Nov | Q10: Dec | S10: per annum
B11: Migration passages | C11: N | F11: 0 | G11: 0 | H11: 0 | I11: 4000 | J11: 2000 | K11: 0 | L11: 0 | M11: 0 | N11: 2000 | O11: 4000 | P11: 0 | Q11: 0 | S11: =SUM(F11:Q11) -> 12000
B12: Width of migration corridor | C12: w | D12: 1 | E12: km
B13: Proportion at rotor height | C13: Q2R-m | D13: 0.145
B14: Projected number of rotor transits | F14: =(F11/($D12*1000))*$D13*$D8/(2*$D7) -> 0 | G14: =(G11/($D12*1000))*$D13*$D8/(2*$D7) -> 0 | H14: 0 | I14: 2388.804222 | J14: 1194.402111 | K14: 0 | L14: 0 | M14: 0 | N14: 1194.402111 | O14: 2388.804222 | P14: 0 | Q14: 0 | S14: =SUM(F14:Q14) -> 7166.412666
